[Event "Chinese Team-ch Men 2025"]
[Site "Zhang Jiakou Hebei"]
[Date "2025.04.28"]
[Round "4.24"]
[White "Yang, ZiLong"]
[Black "Ren, Yibai"]
[Result "1-0"]
[Annotator "RC"]
[ECO "B41"]
[WhiteElo "2337"]
[BlackElo "2027"]
[PlyCount "105"]
[EventDate "2025.04.26"]
[EventType "team-tourn"]
[EventCountry "CHN"]
[SourceTitle "playchess.com"]
[Source "ChessBase"]
[SourceQuality "1"]
[TimeControl "5400+30"]

1. e4 {[%emt 0:00:17]} c5 {[%emt 0:00:15]} 2. Nf3 {[%emt 0:00:08]} a6 {[%emt 0:00:08]} 3. c4 {[%emt 0:00:04]} e6 {[%emt 0:00:33]} 4. d4 {[%emt 0:01:10]} cxd4 {[%emt 0:00:07]} 5. Nxd4 {[%emt 0:00:02]} Nf6 {[%emt 0:00:10]} 6. Bd3 {[%emt 0:01:28]} Nc6 {[%emt 0:00:11]} 7. Nc2 {[%emt 0:02:44]} d5 {[%emt 0:08:16]} 8. exd5 {[%emt 0:05:46]} exd5 {[%emt 0:00:08]} 9. O-O {[%emt 0:00:03]} dxc4 {[%emt 0:01:57]} 10. Bxc4 {[%emt 0:01:58]} Qxd1 {[%emt 0:01:02]} 11. Rxd1 {[%emt 0:00:05]} Be7 {[%emt 0:11:28]} 12. Nc3 {[%emt 0:02:24]} O-O {[%emt 0:07:40]} 13. Bf4 {[%emt 0:15:44]} b5 {[%emt 0:04:39]} 14. Be2 {[%emt 0:01:42]} Bb7 {[%emt 0:01:53]} 15. Ne3 {[%emt 0:03:05]} Rad8 {[%emt 0:05:21]} 16. Bf3 {[%emt 0:07:26]} Rxd1+ {[%emt 0:10:52]} 17. Rxd1 {[%emt 0:00:04]} Rd8 {[%emt 0:00:10]} 18. Rc1 {[%emt 0:10:35]} Kf8 {[%emt 0:05:43]} 19. Nf5 {[%emt 0:12:28]} Rd7 {[%emt 0:09:17]} 20. Kf1 {[%emt 0:05:14]} Nd8 {[%emt 0:03:56]} 21. Bxb7 {[%emt 0:06:41]} Nxb7 {[%emt 0:03:47]} 22. Nxe7 {[%emt 0:00:35]} Kxe7 {[%emt 0:11:41]} 23. Rc2 {[%emt 0:02:42]} Nd5 {[%emt 0:01:00]} 24. Nxd5+ {[%emt 0:01:41]} Rxd5 {[%emt 0:00:01]} 25. Rc7+ {[%emt 0:00:08]} Rd7 {[%emt 0:00:12]} 26. Rc6 {[%emt 0:00:08]} a5 {[%emt 0:00:16]} 27. Rb6 {[%emt 0:00:43]} b4 {[%emt 0:01:01]} 28. Rb5 {[%emt 0:00:15]} f6 {[%emt 0:00:47]} 29. Ke2 {[%emt 0:01:11]} Ke6 {[%emt 0:00:50]} 30. g4 {[%emt 0:01:57]} h6 {[%emt 0:01:46]} 31. h4 {[%emt 0:00:41]} Ke7 {[%emt 0:00:50]} 32. h5 {[%emt 0:01:14]} Kf7 {[%emt 0:01:12]} 33. b3 {[%emt 0:04:30]} Ke7 {[%emt 0:01:59]} 34. Ke3 {[%emt 0:01:00]} Kf7 {[%emt 0:01:19]} 35. Ke4 {[%emt 0:00:37]} Ke6 {[%emt 0:00:19]} 36. f3 {[%emt 0:01:30]} Kf7 {[%emt 0:01:31]} 37. Rd5 {[%emt 0:01:16]} Ke6 {[%emt 0:03:48]} 38. Rxd7 {[%emt 0:01:50]} Kxd7 {[%emt 0:00:01]} 39. Kd5 {[%emt 0:00:30]} Nd8 {[%emt 0:00:32]} 40. Bd6 {[%emt 0:04:57]} Ne6 {[%emt 0:01:21]} 41. f4 {[%emt 0:00:01]} Nd8 {[%emt 0:02:06]} 42. Bc5 {[%emt 0:01:18]} Ne6 {[%emt 0:00:38]} 43. f5 {[%emt 0:00:44]} Nf4+ {[%emt 0:00:38]} 44. Kc4 {[%emt 0:00:51]} Kc6 {[%emt 0:00:22]} 45. Bf8 {[%emt 0:00:04]} Nd5 {[%emt 0:00:03]} 46. Kd4 {[%emt 0:00:38]} Nc3 {[%emt 0:00:28]} 47. Bxg7 {[%emt 0:00:21]} Nxa2 {[%emt 0:00:03]} 48. Bxf6 {[%emt 0:00:13]} Kd7 {[%emt 0:00:25]} 49. g5 {[%emt 0:00:18]} a4 {[%emt 0:00:14]} 50. gxh6 {[%emt 0:00:10]} axb3 {[%emt 0:00:13]} 51. Kc4 {[%emt 0:00:09]} Nc3 {[%emt 0:00:34]} 52. Bxc3 {[%emt 0:00:05]} bxc3 {[%emt 0:00:02]} 53. Kxc3 {[%emt 0:00:04]} 1-0

[Event "Chinese Team-ch Men 2025"]
[Site "Zhang Jiakou Hebei"]
[Date "2025.04.28"]
[Round "4.25"]
[White "Gong, Changda"]
[Black "Wang, Yiye"]
[Result "1-0"]
[Annotator "RC"]
[ECO "D96"]
[WhiteElo "2131"]
[BlackElo "2446"]
[PlyCount "95"]
[EventDate "2025.04.26"]
[EventType "team-tourn"]
[EventCountry "CHN"]
[SourceTitle "playchess.com"]
[Source "ChessBase"]
[SourceQuality "1"]
[TimeControl "5400+30"]

1. d4 {[%emt 0:00:03]} Nf6 {[%emt 0:00:33]} 2. c4 {[%emt 0:00:05]} g6 {[%emt 0:04:08]} 3. Nc3 {[%emt 0:00:18]} d5 {[%emt 0:00:57]} 4. Nf3 {[%emt 0:00:54]} Bg7 {[%emt 0:00:31]} 5. Qb3 {[%emt 0:00:08]} dxc4 {[%emt 0:02:00]} 6. Qxc4 {[%emt 0:00:06]} a6 {[%emt 0:07:54]} 7. e4 {[%emt 0:01:13]} b5 {[%emt 0:00:07]} 8. Qb3 {[%emt 0:00:28]} c5 {[%emt 0:01:52]} 9. dxc5 {[%emt 0:00:52]} Be6 {[%emt 0:12:54]} 10. Qc2 {[%emt 0:03:14]} O-O {[%emt 0:06:26]} 11. Be2 {[%emt 0:03:14]} Nbd7 {[%emt 0:04:41]} 12. Be3 Qc7 {[%emt 0:21:25]} 13. Ng5 {[%emt 0:22:47]} Nxc5 {[%emt 0:09:05]} 14. Nxb5 {[%emt 0:13:55]} axb5 {[%emt 0:00:41]} 15. Qxc5 {[%emt 0:00:16]} Qxc5 {[%emt 0:03:00]} 16. Bxc5 {[%emt 0:00:03]} Bxa2 {[%emt 0:01:59]} 17. Bxe7 {[%emt 0:09:07]} Rfe8 {[%emt 0:03:04]} 18. Ba3 {[%emt 0:06:50]} Bc4 {[%emt 0:10:00]} 19. Bxc4 {[%emt 0:02:19]} bxc4 {[%emt 0:00:05]} 20. f3 {[%emt 0:18:06]} Ra5 {[%emt 0:04:43]} 21. Nh3 {[%emt 0:02:04]} Nxe4 {[%emt 0:03:43]} 22. fxe4 {[%emt 0:01:46]} Rxe4+ {[%emt 0:00:04]} 23. Kd2 {[%emt 0:03:18]} Rd5+ {[%emt 0:00:06]} 24. Kc1 {[%emt 0:00:26]} Re2 {[%emt 0:01:59]} 25. Nf4 {[%emt 0:00:30]} Bh6 {[%emt 0:00:23]} 26. g3 {[%emt 0:00:14]} Bxf4+ {[%emt 0:00:36]} 27. gxf4 {[%emt 0:00:05]} c3 {[%emt 0:00:32]} 28. bxc3 {[%emt 0:03:54]} Rdd2 {[%emt 0:00:27]} 29. Kb1 {[%emt 0:01:59]} Rf2 {[%emt 0:00:32]} 30. c4 {[%emt 0:01:41]} Rd3 {[%emt 0:00:29]} 31. Ra2 {[%emt 0:00:28]} Rxf4 {[%emt 0:00:25]} 32. Rc1 {[%emt 0:00:12]} Rb3+ {[%emt 0:00:10]} 33. Ka1 {[%emt 0:00:11]} Rb6 {[%emt 0:00:52]} 34. Bb2 {[%emt 0:03:30]} Kf8 {[%emt 0:00:33]} 35. c5 {[%emt 0:00:29]} Rc6 {[%emt 0:00:11]} 36. Be5 {[%emt 0:00:17]} Re4 {[%emt 0:00:44]} 37. Bd6+ {[%emt 0:01:14]} Kg7 {[%emt 0:00:11]} 38. Ra7 {[%emt 0:00:14]} Rc8 {[%emt 0:00:55]} 39. Rf1 {[%emt 0:00:20]} Kh6 {[%emt 0:00:22]} 40. Rfxf7 {[%emt 0:00:11]} Kg5 {[%emt 0:00:16]} 41. Rxh7 {[%emt 0:00:27]} Rb4 {[%emt 0:00:39]} 42. Rhb7 {[%emt 0:01:26]} Rd4 {[%emt 0:00:17]} 43. Kb2 {[%emt 0:00:24]} Kf5 {[%emt 0:00:48]} 44. Rf7+ {[%emt 0:00:42]} Ke6 {[%emt 0:00:11]} 45. Rg7 {[%emt 0:00:48]} Rg4 {[%emt 0:00:46]} 46. Kc3 {[%emt 0:00:34]} Kd5 {[%emt 0:00:30]} 47. Rae7 {[%emt 0:00:49]} Ra8 {[%emt 0:00:42]} 48. Re5+ {[%emt 0:00:12]} 1-0

[Event "Chinese Team-ch Men 2025"]
[Site "Zhang Jiakou Hebei"]
[Date "2025.04.28"]
[Round "4.26"]
[White "Hou, Yifan b"]
[Black "Qu, Haoming"]
[Result "1-0"]
[Annotator "RC"]
[ECO "D90"]
[WhiteElo "2313"]
[BlackElo "2066"]
[PlyCount "81"]
[EventDate "2025.04.26"]
[EventType "team-tourn"]
[EventCountry "CHN"]
[SourceTitle "playchess.com"]
[Source "ChessBase"]
[SourceQuality "1"]
[TimeControl "5400+30"]

1. d4 {[%emt 0:00:07]} d5 {[%emt 0:00:14]} 2. c4 {[%emt 0:00:34]} c6 {[%emt 0:00:07]} 3. Nf3 {[%emt 0:01:01]} Nf6 {[%emt 0:00:11]} 4. Nc3 {[%emt 0:00:47]} g6 {[%emt 0:00:23]} 5. h3 {[%emt 0:03:30]} dxc4 {[%emt 0:06:21]} 6. a4 {[%emt 0:02:58]} Nd5 {[%emt 0:04:17]} 7. a5 {[%emt 0:10:41]} Bg7 {[%emt 0:14:12]} 8. e3 {[%emt 0:12:07]} c5 {[%emt 0:23:29]} 9. Bxc4 {[%emt 0:02:24]} Nxc3 {[%emt 0:00:11]} 10. bxc3 {[%emt 0:00:05]} O-O {[%emt 0:00:17]} 11. O-O {[%emt 0:02:30]} Nc6 {[%emt 0:01:49]} 12. Qa4 {[%emt 0:02:57]} Bd7 {[%emt 0:02:54]} 13. Qa2 {[%emt 0:02:19]} cxd4 {[%emt 0:03:43]} 14. cxd4 {[%emt 0:01:18]} Rc8 {[%emt 0:00:24]} 15. Bd2 {[%emt 0:06:56]} Rc7 {[%emt 0:11:24]} 16. Rac1 {[%emt 0:04:36]} a6 {[%emt 0:01:17]} 17. Rfd1 {[%emt 0:05:29]} Qc8 {[%emt 0:01:34]} 18. Ng5 {[%emt 0:02:01]} Nd8 {[%emt 0:04:31]} 19. Bb3 {[%emt 0:02:15]} Bc6 {[%emt 0:03:51]} 20. d5 {[%emt 0:03:34]} Bb5 {[%emt 0:00:17]} 21. Ne4 {[%emt 0:04:25]} Be5 {[%emt 0:02:07]} 22. Rxc7 {[%emt 0:03:27]} Qxc7 {[%emt 0:00:55]} 23. Bb4 {[%emt 0:00:23]} Kg7 {[%emt 0:05:09]} 24. f4 {[%emt 0:09:20]} Bd6 {[%emt 0:00:09]} 25. Nxd6 {[%emt 0:00:26]} exd6 {[%emt 0:00:02]} 26. Qa3 {[%emt 0:00:16]} Re8 {[%emt 0:01:34]} 27. Bxd6 {[%emt 0:00:53]} Qd7 {[%emt 0:00:32]} 28. Be5+ {[%emt 0:02:13]} f6 {[%emt 0:00:08]} 29. Bd4 {[%emt 0:00:02]} Nf7 {[%emt 0:03:04]} 30. Qa1 {[%emt 0:00:41]} Qd6 {[%emt 0:01:29]} 31. Ba4 {[%emt 0:00:52]} Bxa4 {[%emt 0:03:40]} 32. Qxa4 {[%emt 0:00:05]} Qd8 {[%emt 0:00:07]} 33. Rb1 {[%emt 0:01:15]} Nd6 {[%emt 0:02:14]} 34. Rb6 {[%emt 0:00:16]} Ne4 {[%emt 0:01:11]} 35. Rxb7+ {[%emt 0:00:22]} Kh6 {[%emt 0:00:28]} 36. Qd7 {[%emt 0:01:43]} Qxd7 {[%emt 0:00:10]} 37. Rxd7 {[%emt 0:00:02]} Rc8 {[%emt 0:00:09]} 38. g4 {[%emt 0:02:13]} Rc1+ {[%emt 0:01:39]} 39. Kg2 {[%emt 0:00:05]} Rc2+ {[%emt 0:00:06]} 40. Kf3 {[%emt 0:01:38]} f5 {[%emt 0:01:00]} 41. Bg7# {[%emt 0:00:06]} 1-0

[Event "Chinese Team-ch Men 2025"]
[Site "Zhang Jiakou Hebei"]
[Date "2025.04.28"]
[Round "4.27"]
[White "Wu, Kaige"]
[Black "Fan, Huifeng"]
[Result "1/2-1/2"]
[Annotator "RC"]
[ECO "B20"]
[WhiteElo "1753"]
[BlackElo "2178"]
[PlyCount "117"]
[EventDate "2025.04.26"]
[EventType "team-tourn"]
[EventCountry "CHN"]
[SourceTitle "playchess.com"]
[Source "ChessBase"]
[SourceQuality "1"]
[TimeControl "5400+30"]

1. e4 {[%emt 0:00:17]} c5 {[%emt 0:00:07]} 2. g3 {[%emt 0:00:29]} d5 {[%emt 0:00:33]} 3. exd5 {[%emt 0:00:10]} Qxd5 {[%emt 0:00:09]} 4. Nf3 {[%emt 0:00:46]} Bg4 {[%emt 0:00:17]} 5. Bg2 {[%emt 0:00:19]} Qe6+ {[%emt 0:00:15]} 6. Kf1 {[%emt 0:00:07]} Nc6 {[%emt 0:00:27]} 7. h3 {[%emt 0:00:35]} Bh5 {[%emt 0:00:08]} 8. d3 {[%emt 0:00:39]} Qd7 {[%emt 0:00:38]} 9. Na3 {[%emt 0:00:31]} e6 {[%emt 0:02:32]} 10. g4 {[%emt 0:04:22]} Bg6 {[%emt 0:00:07]} 11. Nc4 {[%emt 0:00:09]} Bd6 {[%emt 0:03:43]} 12. Qe2 {[%emt 0:19:48]} f6 {[%emt 0:34:09]} 13. Nh4 {[%emt 0:15:53]} Nge7 {[%emt 0:05:33]} 14. Nxg6 {[%emt 0:08:13]} hxg6 {[%emt 0:00:15]} 15. c3 {[%emt 0:03:24]} O-O-O {[%emt 0:06:11]} 16. Be3 {[%emt 0:03:54]} Nd5 {[%emt 0:09:42]} 17. Rd1 {[%emt 0:02:13]} f5 {[%emt 0:03:38]} 18. gxf5 {[%emt 0:05:53]} gxf5 {[%emt 0:00:08]} 19. Bxd5 {[%emt 0:01:21]} exd5 {[%emt 0:00:26]} 20. Nxd6+ {[%emt 0:00:05]} Qxd6 {[%emt 0:00:09]} 21. Qf3 {[%emt 0:00:04]} g6 {[%emt 0:08:12]} 22. Bf4 {[%emt 0:00:22]} Qf6 {[%emt 0:01:02]} 23. Rg1 {[%emt 0:03:13]} Rh5 {[%emt 0:00:49]} 24. Qg2 {[%emt 0:09:02]} Re8 {[%emt 0:03:32]} 25. Qxg6 {[%emt 0:04:29]} Qxg6 {[%emt 0:00:06]} 26. Rxg6 {[%emt 0:00:03]} Rxh3 {[%emt 0:00:07]} 27. Kg2 {[%emt 0:03:00]} Rh4 {[%emt 0:00:48]} 28. Kg3 {[%emt 0:00:19]} Rh7 {[%emt 0:02:45]} 29. Rg5 {[%emt 0:02:04]} Rf7 {[%emt 0:00:23]} 30. Kf3 {[%emt 0:00:27]} d4 {[%emt 0:00:33]} 31. Rd2 {[%emt 0:04:59]} Re1 {[%emt 0:01:00]} 32. Rg8+ {[%emt 0:03:32]} Kd7 {[%emt 0:00:07]} 33. Rg6 {[%emt 0:00:27]} Ra1 {[%emt 0:08:44]} 34. Re2 {[%emt 0:00:54]} Re7 {[%emt 0:00:55]} 35. Rxe7+ {[%emt 0:00:38]} Nxe7 {[%emt 0:01:41]} 36. Rd6+ {[%emt 0:00:13]} Kc8 {[%emt 0:00:28]} 37. cxd4 {[%emt 0:00:11]} cxd4 {[%emt 0:00:58]} 38. Rxd4 {[%emt 0:00:22]} Rxa2 {[%emt 0:00:26]} 39. Be5 {[%emt 0:02:41]} Nc6 {[%emt 0:00:31]} 40. Rc4 {[%emt 0:00:20]} Kd7 {[%emt 0:00:05]} 41. Bc3 {[%emt 0:00:21]} Kd6 {[%emt 0:01:20]} 42. Rf4 {[%emt 0:00:55]} Ke6 {[%emt 0:00:23]} 43. Rh4 {[%emt 0:00:25]} b5 {[%emt 0:00:45]} 44. Rh6+ {[%emt 0:00:50]} Kd5 {[%emt 0:01:25]} 45. Kf4 {[%emt 0:02:17]} b4 {[%emt 0:00:06]} 46. Bf6 {[%emt 0:00:22]} a5 {[%emt 0:03:09]} 47. Kxf5 {[%emt 0:00:11]} Nd4+ {[%emt 0:00:05]} 48. Kf4 {[%emt 0:00:46]} Ne6+ {[%emt 0:03:17]} 49. Ke3 {[%emt 0:00:26]} a4 {[%emt 0:00:20]} 50. Rh4 {[%emt 0:00:57]} b3 {[%emt 0:00:09]} 51. Rb4 {[%emt 0:00:29]} Ra1 {[%emt 0:00:56]} 52. f4 {[%emt 0:00:37]} Nc5 {[%emt 0:00:52]} 53. Kd2 {[%emt 0:00:26]} a3 {[%emt 0:00:20]} 54. bxa3 {[%emt 0:00:24]} Rxa3 {[%emt 0:00:34]} 55. Be7 {[%emt 0:00:56]} Ra2+ {[%emt 0:00:53]} 56. Ke3 {[%emt 0:00:29]} b2 {[%emt 0:00:16]} 57. Rb5 {[%emt 0:00:37]} Kc6 {[%emt 0:00:08]} 58. Rxc5+ {[%emt 0:00:34]} Kb6 {[%emt 0:00:06]} 59. Rc4 {[%emt 0:00:21]} 1/2-1/2

[Event "Chinese Team-ch Men 2025"]
[Site "Zhang Jiakou Hebei"]
[Date "2025.04.28"]
[Round "4.29"]
[White "Yu, Shi"]
[Black "Wan, Yunguo"]
[Result "0-1"]
[Annotator "RC"]
[ECO "A13"]
[WhiteElo "1973"]
[BlackElo "2500"]
[PlyCount "118"]
[EventDate "2025.04.26"]
[EventType "team-tourn"]
[EventCountry "CHN"]
[SourceTitle "playchess.com"]
[Source "ChessBase"]
[SourceQuality "1"]
[TimeControl "5400+30"]

1. Nf3 {[%emt 0:00:04]} Nf6 {[%emt 0:00:24]} 2. c4 {[%emt 0:00:28]} e6 {[%emt 0:00:28]} 3. b3 {[%emt 0:02:56]} d5 {[%emt 0:01:29]} 4. Bb2 {[%emt 0:00:58]} b6 {[%emt 0:04:17]} 5. cxd5 {[%emt 0:10:38]} exd5 {[%emt 0:00:34]} 6. e3 {[%emt 0:00:44]} Bd6 {[%emt 0:04:37]} 7. Be2 {[%emt 0:01:29]} O-O {[%emt 0:00:17]} 8. O-O {[%emt 0:00:06]} Re8 {[%emt 0:01:25]} 9. Nc3 {[%emt 0:01:30]} Bb7 {[%emt 0:03:00]} 10. Nb5 {[%emt 0:06:54]} Be7 {[%emt 0:26:43]} 11. Be5 {[%emt 0:06:41]} Na6 {[%emt 0:02:09]} 12. Rc1 {[%emt 0:05:02]} c6 {[%emt 0:01:43]} 13. Nbd4 {[%emt 0:02:02]} Nc5 {[%emt 0:07:14]} 14. Bxf6 {[%emt 0:09:47]} Bxf6 {[%emt 0:00:36]} 15. b4 {[%emt 0:00:09]} Ne6 {[%emt 0:01:19]} 16. Nxc6 {[%emt 0:01:25]} Qd6 {[%emt 0:00:09]} 17. b5 {[%emt 0:00:22]} Rec8 {[%emt 0:12:35]} 18. d4 {[%emt 0:06:54]} Bxc6 {[%emt 0:00:58]} 19. bxc6 {[%emt 0:00:12]} Rxc6 {[%emt 0:00:05]} 20. Bb5 {[%emt 0:06:17]} Rc7 {[%emt 0:00:43]} 21. Rxc7 {[%emt 0:01:22]} Qxc7 {[%emt 0:05:04]} 22. Qb3 {[%emt 0:00:50]} Rd8 {[%emt 0:00:17]} 23. Qb1 {[%emt 0:03:19]} Qb8 {[%emt 0:02:28]} 24. Rc1 {[%emt 0:00:22]} Rc8 {[%emt 0:01:08]} 25. h3 {[%emt 0:04:38]} Rxc1+ {[%emt 0:00:52]} 26. Qxc1 {[%emt 0:00:04]} Qc7 {[%emt 0:00:04]} 27. Qxc7 {[%emt 0:00:05]} Nxc7 {[%emt 0:00:03]} 28. Bd3 {[%emt 0:00:20]} Kf8 {[%emt 0:00:12]} 29. Kf1 {[%emt 0:00:06]} h6 {[%emt 0:00:40]} 30. Ke2 {[%emt 0:00:05]} Ke7 {[%emt 0:00:29]} 31. Ne1 {[%emt 0:03:37]} Kd6 {[%emt 0:02:47]} 32. Nc2 {[%emt 0:00:12]} Be7 {[%emt 0:00:40]} 33. Kd2 {[%emt 0:00:12]} b5 {[%emt 0:05:15]} 34. Kc3 {[%emt 0:02:38]} Kc6 {[%emt 0:01:51]} 35. Kb3 {[%emt 0:01:48]} a5 {[%emt 0:00:08]} 36. a4 {[%emt 0:02:01]} b4 {[%emt 0:00:28]} 37. Na1 {[%emt 0:00:19]} Bh4 {[%emt 0:00:42]} 38. g3 {[%emt 0:00:09]} Bd8 {[%emt 0:00:08]} 39. Kc2 {[%emt 0:00:07]} Ne6 {[%emt 0:00:29]} 40. f4 {[%emt 0:03:43]} Kd6 {[%emt 0:02:59]} 41. Kd1 {[%emt 0:01:13]} Bb6 {[%emt 0:00:54]} 42. Nb3 {[%emt 0:00:15]} Nc7 {[%emt 0:00:12]} 43. g4 {[%emt 0:00:25]} Ke6 {[%emt 0:02:00]} 44. Ke2 {[%emt 0:00:28]} Ne8 {[%emt 0:00:12]} 45. Bf5+ {[%emt 0:00:59]} Ke7 {[%emt 0:00:29]} 46. Bd3 {[%emt 0:00:06]} Nd6 {[%emt 0:00:33]} 47. Nd2 {[%emt 0:00:30]} Ke6 {[%emt 0:01:00]} 48. Kf3 {[%emt 0:00:54]} f5 {[%emt 0:02:53]} 49. Kg3 {[%emt 0:05:37]} Kf6 {[%emt 0:00:51]} 50. h4 {[%emt 0:04:19]} fxg4 {[%emt 0:02:29]} 51. Kxg4 {[%emt 0:00:04]} Nf5 {[%emt 0:03:35]} 52. Bxf5 {[%emt 0:06:19]} h5+ {[%emt 0:00:03]} 53. Kxh5 {[%emt 0:04:21]} Kxf5 {[%emt 0:00:04]} 54. Nb3 {[%emt 0:00:09]} Bd8 {[%emt 0:00:23]} 55. Nd2 {[%emt 0:00:17]} Be7 {[%emt 0:00:42]} 56. Nf1 {[%emt 0:01:09]} b3 {[%emt 0:00:09]} 57. Ng3+ {[%emt 0:00:27]} Kf6 {[%emt 0:00:20]} 58. Ne2 {[%emt 0:00:33]} b2 {[%emt 0:00:46]} 59. Nc3 {[%emt 0:00:06]} Kf5 {[%emt 0:00:07]} 0-1

[Event "Chinese Team-ch Men 2025"]
[Site "Zhang Jiakou Hebei"]
[Date "2025.04.28"]
[Round "4.30"]
[White "Zhang, Ziji"]
[Black "Liu, Huaqi"]
[Result "1-0"]
[Annotator "RC"]
[ECO "E51"]
[WhiteElo "2371"]
[BlackElo "1816"]
[PlyCount "45"]
[EventDate "2025.04.26"]
[EventType "team-tourn"]
[EventCountry "CHN"]
[SourceTitle "playchess.com"]
[Source "ChessBase"]
[SourceQuality "1"]
[TimeControl "5400+30"]

1. d4 {[%emt 0:00:06]} Nf6 {[%emt 0:00:09]} 2. c4 {[%emt 0:00:13]} e6 {[%emt 0:00:15]} 3. Nc3 {[%emt 0:01:38]} Bb4 {[%emt 0:00:39]} 4. e3 {[%emt 0:00:51]} O-O {[%emt 0:00:31]} 5. Nf3 {[%emt 0:01:05]} d5 {[%emt 0:00:44]} 6. Bd2 {[%emt 0:00:50]} Re8 {[%emt 0:04:32]} 7. Rc1 {[%emt 0:00:59]} c6 {[%emt 0:00:37]} 8. Be2 {[%emt 0:06:31]} Nbd7 {[%emt 0:00:43]} 9. O-O {[%emt 0:01:30]} Bd6 {[%emt 0:12:30]} 10. Qc2 {[%emt 0:09:26]} dxc4 {[%emt 0:17:31]} 11. Bxc4 {[%emt 0:01:05]} Nb6 {[%emt 0:08:22]} 12. Bb3 {[%emt 0:02:52]} e5 {[%emt 0:01:05]} 13. Ng5 {[%emt 0:10:21]} Rf8 {[%emt 0:01:11]} 14. dxe5 {[%emt 0:00:31]} Bxe5 {[%emt 0:00:21]} 15. f4 {[%emt 0:00:53]} Bd6 {[%emt 0:07:14]} 16. e4 {[%emt 0:16:23]} h6 {[%emt 0:17:49]} 17. Nf3 {[%emt 0:09:11]} Bc5+ {[%emt 0:06:08]} 18. Kh1 {[%emt 0:00:05]} Bg4 {[%emt 0:04:25]} 19. e5 {[%emt 0:05:57]} Nfd7 {[%emt 0:01:54]} 20. h3 {[%emt 0:00:31]} Be6 {[%emt 0:01:56]} 21. Ne4 {[%emt 0:06:24]} Be7 {[%emt 0:00:07]} 22. Bxe6 {[%emt 0:00:50]} fxe6 {[%emt 0:00:06]} 23. Nd4 {[%emt 0:00:33]} 1-0

[Event "Chinese Team-ch Men 2025"]
[Site "Zhang Jiakou Hebei"]
[Date "2025.04.28"]
[Round "4.31"]
[White "Liu, Junyi"]
[Black "Fan, Jingyi"]
[Result "0-1"]
[Annotator "RC"]
[ECO "B25"]
[WhiteElo "1714"]
[BlackElo "2175"]
[PlyCount "58"]
[EventDate "2025.04.26"]
[EventType "team-tourn"]
[EventCountry "CHN"]
[SourceTitle "playchess.com"]
[Source "ChessBase"]
[SourceQuality "1"]
[TimeControl "5400+30"]

1. e4 {[%emt 0:00:08]} c5 {[%emt 0:00:05]} 2. Nc3 {[%emt 0:00:04]} Nc6 {[%emt 0:00:17]} 3. g3 {[%emt 0:00:06]} g6 {[%emt 0:00:14]} 4. Bg2 {[%emt 0:00:13]} Bg7 {[%emt 0:00:06]} 5. d3 {[%emt 0:00:33]} d6 {[%emt 0:00:39]} 6. Nd5 {[%emt 0:00:35]} e6 {[%emt 0:04:08]} 7. Ne3 {[%emt 0:00:12]} Nge7 {[%emt 0:00:50]} 8. f4 {[%emt 0:00:26]} O-O {[%emt 0:01:53]} 9. Ne2 {[%emt 0:00:38]} Rb8 {[%emt 0:11:30]} 10. O-O {[%emt 0:01:19]} Nd4 {[%emt 0:01:14]} 11. c3 {[%emt 0:00:29]} Nxe2+ {[%emt 0:00:06]} 12. Qxe2 {[%emt 0:00:03]} b5 {[%emt 0:04:32]} 13. Nc2 {[%emt 0:10:21]} a5 {[%emt 0:05:17]} 14. e5 {[%emt 0:02:39]} b4 {[%emt 0:03:09]} 15. d4 {[%emt 0:01:20]} cxd4 {[%emt 0:09:26]} 16. cxd4 {[%emt 0:01:43]} Qb6 {[%emt 0:00:33]} 17. Re1 {[%emt 0:11:47]} Ba6 {[%emt 0:15:18]} 18. Qe4 {[%emt 0:06:53]} Rfc8 {[%emt 0:04:22]} 19. Bf1 {[%emt 0:03:35]} Bb7 {[%emt 0:02:08]} 20. Qd3 {[%emt 0:06:49]} Qc6 {[%emt 0:00:36]} 21. Ne3 {[%emt 0:01:02]} Qh1+ {[%emt 0:02:07]} 22. Kf2 {[%emt 0:00:04]} Be4 {[%emt 0:09:10]} 23. Qe2 {[%emt 0:10:05]} Qxh2+ {[%emt 0:00:43]} 24. Ng2 {[%emt 0:01:13]} Rc2 {[%emt 0:02:01]} 25. Bd2 {[%emt 0:00:09]} Nf5 {[%emt 0:01:33]} 26. Qxe4 {[%emt 0:00:31]} Rxd2+ {[%emt 0:00:08]} 27. Re2 {[%emt 0:00:59]} Qxg3+ {[%emt 0:01:12]} 28. Kg1 {[%emt 0:00:06]} d5 {[%emt 0:01:32]} 29. Qxf5 {[%emt 0:01:11]} Rxe2 {[%emt 0:00:52]} 0-1